[Event "CIS Master Groups 2024"]
[Site "Vasto"]
[Date "2024.04.08"]
[Round "1.6"]
[White "Sonis, Francesco"]
[Black "Marchesich, Giovanni"]
[Result "1-0"]
[ECO "D76"]
[WhiteElo "2562"]
[BlackElo "2226"]
[Annotator "TA"]
[PlyCount "59"]
[EventDate "2024.04.07"]
[EventType "team-tourn"]
[EventCountry "ITA"]
[SourceTitle "playchess.com"]
[Source "ChessBase"]
[SourceQuality "1"]
[TimeControl "40/5400+30:900+30"]

{[%evp 17,59,16,15,0,0,0,0,9,35,34,11,25,72,88,59,12,36,47,91,88,103,85,106,107,144,156,156,168,184,167,211,154,132,135,270,275,255,206,222,143,456,435,450,432]} 1. Nf3 {[%emt 0:00:10]} Nf6 {[%emt 0:00:19]} 2. c4 {[%emt 0:00:15]} g6 {[%emt 0:00:30]} 3. g3 {[%emt 0:00:06]} Bg7 {[%emt 0:00:25]} 4. Bg2 {[%emt 0:00:07]} O-O {[%emt 0:00:26]} 5. O-O {[%emt 1:32:22]} d5 {[%emt 0:00:22]} 6. cxd5 {[%emt 0:00:00]} Nxd5 {[%emt 0:00:12]} 7. d4 {[%emt 0:00:00]} Nb6 {[%emt 0:00:25]} 8. Nc3 {[%emt 0:00:00][%cal Bb1c3,Bc3e4,Be4c5,Bc5d3][%mdl 32]} Nc6 {[%emt 0:00:14]} 9. e3 {[%emt 0:00:00]} Re8 {[%emt 0:00:36]} 10. Nd2 {[%emt 0:00:00]} e5 {[%emt 0:15:45]} 11. d5 {[%emt 0:00:00]} Nb4 {[%emt 0:06:53]} 12. Nb3 {[%emt 0:00:00] The position is equal.} e4 {[%emt 0:04:53]} 13. Nxe4 {[%emt 0:00:00]} N4xd5 {[%emt 0:00:26][%cal Bb4d5,Bd5c7,Bc7e6,Be6g5,Bg5h3][%mdl 32]} 14. Nec5 {[%emt 0:00:00]} c6 {[%emt 0:03:12]} (14... Qd6 $11) 15. e4 $16 {[%emt 0:00:00]} Nc7 {[%emt 0:04:17]} 16. Qc2 {[%emt 0:00:00]} (16. Qxd8 $14 Rxd8 17. Na5) 16... Ne6 {[%emt 0:05:04]} 17. Be3 {[%emt 0:00:00]} Qf6 {[%emt 0:01:58]} 18. Nd3 {[%emt 0:00:00]} Ng5 {[%emt 0:05:37]} 19. f3 {[%emt 0:00:00]} Be6 {[%emt 0:06:27]} 20. Nd2 {[%emt 0:00:00] Prevents Bc4.} Nh3+ {[%emt 0:06:07]} 21. Kh1 {[%emt 0:00:00]} Rad8 {[%emt 0:01:50] [#]} 22. a4 $1 {[%emt 0:00:00][%cal Ba2a4,Ba4a5,Ba5a6][%mdl 32]} g5 {[%emt 0:05:59]} 23. a5 {[%emt 0:00:00]} Nc8 {[%emt 0:00:10]} 24. a6 {[%emt 0:00:00]} b6 {[%emt 0:00:55]} 25. f4 $36 {[%emt 0:00:00][%mdl 2048] Strongly threatening f5. White has strong initiative.} ({Don't take} 25. Qxc6 Qe7 26. Qc2 Qd7 $14) 25... gxf4 {[%emt 0:01:57]} (25... Ne7 $16 26. fxg5 Qg6) 26. gxf4 $18 {[%emt 0:00:00][%cal Of4f5] Black must now prevent f5!} ({And not} 26. Nxf4 Nxf4 27. gxf4 Qxb2 28. Qxb2 Bxb2 $11) 26... Bg4 {[%emt 0:00:22]} 27. Nc4 {[%emt 0:00:00]} c5 {[%emt 0:04:14]} 28. Nce5 {[%emt 0:00:00]} Qh4 {[%emt 0:00:19][%mdl 8192] [#]} (28... h5 $16 {is more resistant.} 29. Bxh3 Bxh3) 29. Nxg4 {[%emt 0:00:00]} Qxg4 {[%emt 0:00:01]} 30. Rf3 {[%emt 0:00:00] Weighted Error Value: White=0.15 (very precise) /Black=0.41.  Loses game:     	---       	Black=1      Mistake:       	White=1     	Black=2      Inaccurate:     	White=1     	Black=3      OK:         	White=7     	Black=5      Best:        	White=5     	---        Strong:       	White=1     	---} 1-0

[Event "CIS Master Groups 2024"]
[Site "Vasto"]
[Date "2024.04.08"]
[Round "1.7"]
[White "Casadio, Niccolo`"]
[Black "Paltrinieri, Nicholas"]
[Result "1-0"]
[ECO "C16"]
[WhiteElo "2309"]
[BlackElo "2355"]
[Annotator "RC"]
[PlyCount "111"]
[EventDate "2024.04.07"]
[EventType "team-tourn"]
[EventCountry "ITA"]
[SourceTitle "playchess.com"]
[Source "ChessBase"]
[SourceQuality "1"]
[TimeControl "40/5400+30:900+30"]

1. e4 {[%emt 0:00:08]} e6 {[%emt 0:00:04]} 2. d4 {[%emt 0:00:11]} d5 {[%emt 0:00:06]} 3. Nc3 {[%emt 0:00:05]} Bb4 {[%emt 0:00:07]} 4. e5 {[%emt 0:00:06]} b6 {[%emt 0:00:04]} 5. h4 {[%emt 0:00:39]} Qd7 {[%emt 0:01:52]} 6. h5 {[%emt 0:00:53]} h6 {[%emt 0:00:05]} 7. Qg4 {[%emt 0:00:26]} Bf8 {[%emt 0:00:05]} 8. b4 {[%emt 0:00:39]} Nc6 {[%emt 0:02:49]} 9. a3 {[%emt 0:06:09]} Bb7 {[%emt 0:00:05]} 10. Bd3 {[%emt 0:02:55]} O-O-O {[%emt 0:01:56]} 11. Nf3 {[%emt 0:02:05]} Nge7 {[%emt 0:00:36]} 12. Ne2 {[%emt 0:02:22]} Nf5 {[%emt 0:15:09]} 13. Qf4 {[%emt 0:14:59]} f6 {[%emt 0:35:25]} 14. b5 {[%emt 0:03:50]} Na5 {[%emt 0:05:49]} 15. g4 {[%emt 0:00:32]} Ne7 {[%emt 0:00:05]} 16. exf6 {[%emt 0:00:11]} gxf6 {[%emt 0:00:19]} 17. Qxf6 {[%emt 0:00:14]} Rg8 {[%emt 0:00:24]} 18. Ne5 {[%emt 0:00:35]} Qe8 {[%emt 0:00:35]} 19. Qxe6+ {[%emt 0:00:41]} Kb8 {[%emt 0:00:04]} 20. Qf7 {[%emt 0:04:02]} Bg7 {[%emt 0:00:54]} 21. Qxe8 {[%emt 0:00:32]} Rdxe8 {[%emt 0:00:04]} 22. f4 {[%emt 0:04:26]} Nc4 {[%emt 0:00:49]} 23. Rg1 {[%emt 0:00:43]} c6 {[%emt 0:03:13]} 24. a4 {[%emt 0:01:40]} c5 {[%emt 0:02:12]} 25. c3 {[%emt 0:01:17]} Bc8 {[%emt 0:00:03]} 26. Nxc4 {[%emt 0:00:51]} dxc4 {[%emt 0:00:53]} 27. Bxc4 {[%emt 0:00:08]} cxd4 {[%emt 0:00:36]} 28. cxd4 {[%emt 0:01:20]} Bxd4 {[%emt 0:00:21]} 29. Nxd4 {[%emt 0:00:20]} Nf5+ {[%emt 0:06:48]} 30. Ne2 {[%emt 0:02:05]} Nd4 {[%emt 0:00:04]} 31. Bb2 {[%emt 0:00:20]} Nf3+ {[%emt 0:02:10]} 32. Kf2 {[%emt 0:01:47]} Nxg1 {[%emt 0:00:04]} 33. Rxg1 {[%emt 0:01:52]} Rxg4 {[%emt 0:00:41]} 34. Be5+ {[%emt 0:00:30]} Rxe5 {[%emt 0:00:06]} 35. Rxg4 {[%emt 0:00:05]} Rc5 {[%emt 0:01:28]} 36. f5 {[%emt 0:00:07]} Rxf5+ {[%emt 0:00:04]} 37. Rf4 {[%emt 0:03:53]} Rxh5 {[%emt 0:00:10]} 38. Nd4 {[%emt 0:03:10]} Kc7 {[%emt 0:01:23]} 39. Nc6 {[%emt 0:03:21]} Rf5 {[%emt 0:18:46]} 40. Ke3 {[%emt 0:02:48]} Rxf4 {[%emt 0:00:31]} 41. Kxf4 {[%emt 0:15:02]} a6 {[%emt 0:15:19]} 42. Ke5 {[%emt 0:01:46]} axb5 {[%emt 0:00:05]} 43. axb5 {[%emt 0:00:11]} Bd7 {[%emt 0:00:32]} 44. Ne7 {[%emt 0:00:20]} h5 {[%emt 0:01:06]} 45. Nd5+ {[%emt 0:00:08]} Kb7 {[%emt 0:00:05]} 46. Nf6 {[%emt 0:00:07]} Bxb5 {[%emt 0:02:03]} 47. Bxb5 {[%emt 0:00:08]} h4 {[%emt 0:00:03]} 48. Kd6 {[%emt 0:01:20]} h3 {[%emt 0:00:07]} 49. Ng4 {[%emt 0:00:13]} Ka7 {[%emt 0:00:06]} 50. Kc7 {[%emt 0:00:18]} Ka8 {[%emt 0:00:24]} 51. Nh2 {[%emt 0:00:04]} Ka7 {[%emt 0:00:05]} 52. Nf3 {[%emt 0:00:03]} Ka8 {[%emt 0:00:18]} 53. Bc6+ {[%emt 0:00:29]} Ka7 {[%emt 0:00:06]} 54. Bb7 {[%emt 0:00:07]} h2 {[%emt 0:00:05]} 55. Nd4 {[%emt 0:00:07]} h1=B {[%emt 0:00:05]} 56. Nb5# {[%emt 0:00:08]} 1-0

[Event "CIS Master Groups 2024"]
[Site "Vasto"]
[Date "2024.04.08"]
[Round "1.8"]
[White "Maldonado Gonzales, Stefano"]
[Black "Sorbera, Giovanni"]
[Result "1-0"]
[ECO "C54"]
[WhiteElo "2218"]
[BlackElo "2148"]
[Annotator "RC"]
[PlyCount "123"]
[EventDate "2024.04.07"]
[EventType "team-tourn"]
[EventCountry "ITA"]
[SourceTitle "playchess.com"]
[Source "ChessBase"]
[SourceQuality "1"]
[TimeControl "40/5400+30:900+30"]

1. e4 {[%emt 0:00:01]} e5 {[%emt 0:00:58]} 2. Nf3 {[%emt 0:00:05]} Nc6 {[%emt 0:00:11]} 3. Bc4 {[%emt 0:00:03]} Nf6 {[%emt 0:00:14]} 4. d3 {[%emt 0:00:02]} Bc5 {[%emt 0:00:15]} 5. O-O {[%emt 0:00:04]} d6 {[%emt 0:00:19]} 6. c3 {[%emt 0:00:02]} a6 {[%emt 0:00:09]} 7. a4 {[%emt 0:00:03]} O-O {[%emt 0:00:46]} 8. h3 {[%emt 0:00:08]} h6 {[%emt 0:00:13]} 9. Re1 {[%emt 0:00:18]} Re8 {[%emt 0:01:11]} 10. Nbd2 {[%emt 0:00:12]} Be6 {[%emt 0:01:21]} 11. Bxe6 {[%emt 0:00:04]} Rxe6 {[%emt 0:00:07]} 12. b4 {[%emt 0:00:03]} Ba7 {[%emt 0:00:08]} 13. Bb2 {[%emt 0:00:49]} Ne7 {[%emt 0:02:13]} 14. Nf1 {[%emt 0:00:05]} Ng6 {[%emt 0:03:00]} 15. c4 {[%emt 0:00:04]} Nf4 {[%emt 0:04:07]} 16. Ng3 {[%emt 0:21:30]} Nh7 {[%emt 0:02:32]} 17. Bc1 {[%emt 0:04:21]} Rf6 {[%emt 0:41:44]} 18. Bxf4 {[%emt 0:12:38]} Rxf4 {[%emt 0:00:24]} 19. Nh5 {[%emt 0:00:16]} Rh4 {[%emt 0:00:27]} 20. Ng3 {[%emt 0:07:32]} g6 {[%emt 0:00:08]} 21. Nxh4 {[%emt 0:01:08]} Qxh4 {[%emt 0:00:10]} 22. Qf3 {[%emt 0:03:19]} h5 {[%emt 0:02:23]} 23. Nf1 {[%emt 0:04:12]} Re8 {[%emt 0:01:17]} 24. Qg3 {[%emt 0:01:06]} Qd8 {[%emt 0:01:59]} 25. Ne3 {[%emt 0:00:07]} Re6 {[%emt 0:01:12]} 26. Rf1 {[%emt 0:04:02]} Bd4 {[%emt 0:03:09]} 27. Rab1 {[%emt 0:01:26]} Qd7 {[%emt 0:02:09]} 28. b5 {[%emt 0:01:21]} a5 {[%emt 0:00:13]} 29. Kh1 {[%emt 0:01:05]} Qd8 {[%emt 0:04:38]} 30. Nc2 {[%emt 0:01:09]} Bc5 {[%emt 0:01:03]} 31. f4 {[%emt 0:00:35]} Re8 {[%emt 0:01:45]} 32. Qf3 {[%emt 0:01:53]} Rf8 {[%emt 0:00:56]} 33. Qg3 {[%emt 0:03:38]} h4 {[%emt 0:01:33]} 34. Qg4 {[%emt 0:00:12]} Nf6 {[%emt 0:00:48]} 35. Qxh4 {[%emt 0:03:01]} Nh5 {[%emt 0:04:05]} 36. Qg4 {[%emt 0:01:06]} exf4 {[%emt 0:01:13]} 37. d4 {[%emt 0:06:36]} Bb6 {[%emt 0:02:46]} 38. Rf3 {[%emt 0:01:40]} Qf6 {[%emt 0:01:45]} 39. Rd3 {[%emt 0:10:25]} Re8 {[%emt 0:00:38]} 40. Re1 {[%emt 0:01:34]} Ng3+ {[%emt 0:02:48]} 41. Kh2 {[%emt 0:16:11]} Rxe4 {[%emt 0:20:56]} 42. Rxe4 {[%emt 0:02:08]} Nxe4 {[%emt 0:00:08]} 43. Rf3 {[%emt 0:00:40]} g5 {[%emt 0:02:14]} 44. h4 {[%emt 0:01:10]} Nd2 {[%emt 0:04:08]} 45. Rd3 {[%emt 0:01:03]} Ne4 {[%emt 0:00:00]} 46. hxg5 {[%emt 0:00:00]} Nxg5 {[%emt 0:00:00]} 47. Rh3 {[%emt 0:00:00]} Kf8 {[%emt 0:00:00]} 48. Qc8+ {[%emt 0:00:00]} Ke7 {[%emt 0:00:00]} 49. Rh8 {[%emt 0:00:00]} Qg7 {[%emt 0:00:00]} 50. c5 {[%emt 0:00:29]} dxc5 {[%emt 0:00:00]} 51. dxc5 {[%emt 0:02:01]} Bxc5 {[%emt 0:01:50]} 52. Qd8+ {[%emt 0:00:31]} Ke6 {[%emt 0:00:06]} 53. Re8+ {[%emt 0:00:02]} Kf5 {[%emt 0:00:08]} 54. Qd5+ {[%emt 0:00:04]} Kg4 {[%emt 0:00:23]} 55. Qxc5 {[%emt 0:00:41]} f6 {[%emt 0:01:59]} 56. Qe7 {[%emt 0:02:01]} Qh6+ {[%emt 0:01:14]} 57. Kg1 {[%emt 0:00:03]} Kg3 {[%emt 0:00:12]} 58. Qe1+ {[%emt 0:00:12]} Kg4 {[%emt 0:00:01]} 59. Nd4 {[%emt 0:00:43]} Qg6 {[%emt 0:01:00]} 60. Rh8 {[%emt 0:00:28]} Nh7 {[%emt 0:00:44]} 61. Qe6+ {[%emt 0:00:20]} Kh4 {[%emt 0:00:46]} 62. Nf3+ {[%emt 0:00:06]} 1-0

[Event "CIS Master Groups 2024"]
[Site "Vasto"]
[Date "2024.04.08"]
[Round "1.9"]
[White "Zwirs, Nico"]
[Black "Ivanisevic, Ivan"]
[Result "1/2-1/2"]
[ECO "C24"]
[WhiteElo "2480"]
[BlackElo "2518"]
[Annotator "TA"]
[PlyCount "90"]
[EventDate "2024.04.07"]
[EventType "team-tourn"]
[EventCountry "ITA"]
[SourceTitle "playchess.com"]
[Source "ChessBase"]
[SourceQuality "1"]
[TimeControl "40/5400+30:900+30"]

{[%evp 11,90,38,43,41,50,34,39,18,22,0,0,0,1,0,0,0,39,33,15,31,45,45,54,0,15,14,13,-2,0,0,0,0,0,0,0,0,0,0,0,0,0,0,8,0,0,0,0,0,0,0,0,-10,-10,-10,-10,-8,-8,-10,-10,-10,-10,-10,-10,-17,-9,-9,-9,-9,-9,-9,0,0,0,0,0,0,0,0,0,0,0]} 1. e4 {[%emt 0:00:01]} e5 {[%emt 0:00:07]} 2. Nf3 {[%emt 0:00:06]} Nc6 {[%emt 0:00:10]} 3. Bc4 {[%emt 0:00:07]} Nf6 {[%emt 0:00:07][%cal Bg8f6,Bf6d5,Bd5b6][%mdl 32]} 4. d3 {[%emt 0:00:05]} d5 {[%emt 0:00:07]} 5. exd5 {[%emt 0:00:16]} Nxd5 {[%emt 0:00:06]} 6. O-O {[%emt 0:00:47]} Nb6 {[%emt 0:00:06]} 7. Bb5 {[%emt 0:05:14]} Bd6 {[%emt 0:05:31]} 8. Re1 {[%emt 0:03:02]} f6 {[%emt 0:00:32]} 9. d4 {[%emt 0:10:13] White is slightly better.} O-O {[%emt 0:00:24]} 10. Bxc6 {[%emt 0:04:56]} bxc6 {[%emt 0:00:09]} 11. dxe5 {[%emt 0:00:04]} fxe5 {[%emt 0:00:10][%cal Oe5e4]} 12. Bg5 {[%emt 0:01:33][%cal Bc1g5,Bg5h4,Bh4g3][%mdl 32]} (12. Nxe5 $2 Bxe5 13. Qxd8 Rxd8 $19) 12... Qe8 {[%emt 0:02:08]} 13. Nbd2 {[%emt 0:01:21]} Qh5 {[%emt 0:09:58]} 14. Bh4 {[%emt 0:06:24]} Bg4 {[%emt 0:02:36]} 15. Bg3 $1 {[%emt 0:01:02]} Rad8 {[%emt 0:01:31]} 16. Qe2 {[%emt 0:05:55]} (16. Bxe5 $2 Bxf3 17. Nxf3 Bxe5 $19) 16... Rde8 {[%emt 0:07:56][%cal Oe5e4]} 17. h3 {[%emt 0:14:13]} (17. Bxe5 $2 {perishes.} Bxe5 (17... Rxe5 $2 18. Qxe5 Bxe5 19. Nxe5 $19) 18. Qxe5 Rxe5 $19) 17... Bxf3 {[%emt 0:06:20] The position is equal.} 18. Nxf3 {[%emt 0:00:15]} e4 {[%emt 0:00:05]} 19. Nd2 $132 {[%emt 0:11:28][%mdl 2048] White has counterplay} Qg6 {[%emt 0:02:51] [#] aiming for ...e3.} 20. Bxd6 {[%emt 0:21:08]} (20. Nxe4 $2 Bxg3 21. fxg3 Re6 $19) 20... cxd6 {[%emt 0:01:25]} 21. Qg4 {[%emt 0:04:07]} (21. Nxe4 $2 {is the wrong capture.} d5 $19) 21... Qxg4 {[%emt 0:06:10]} 22. hxg4 {[%emt 0:00:01]} d5 {[%emt 0:00:11]} 23. Re3 {[%emt 0:01:22]} Nd7 {[%emt 0:05:53]} 24. Rae1 {[%emt 0:00:21]} Rb8 {[%emt 0:07:15]} 25. Rb3 {[%emt 0:02:26]} a5 {[%emt 0:00:16]} 26. f3 {[%emt 0:00:30]} Ne5 {[%emt 0:09:02]} 27. fxe4 {[%emt 0:00:09] [#] Hoping for Rxb8.} Nxg4 {[%emt 0:00:34]} 28. exd5 {[%emt 0:00:06]} cxd5 {[%emt 0:01:07]} 29. Rxb8 {[%emt 0:01:52]} Rxb8 $11 {[%emt 0:00:06][%mdl 4096] Endgame. KRN-KRN} 30. b3 {[%emt 0:00:13]} a4 {[%emt 0:02:46]} 31. c4 {[%emt 0:04:26]} axb3 {[%emt 0:02:24]} 32. axb3 {[%emt 0:00:04]} dxc4 {[%emt 0:00:06]} 33. bxc4 {[%emt 0:00:21]} Rb2 {[%emt 0:00:14]} 34. Nf3 {[%emt 0:00:39]} Rc2 {[%emt 0:00:26]} 35. Ne5 {[%emt 0:00:13]} Nxe5 {[%emt 0:02:21]} 36. Rxe5 {[%emt 0:00:02]} Rxc4 {[%emt 0:00:07] KR-KR} 37. Re7 {[%emt 0:00:11]} h5 {[%emt 0:00:21]} 38. Re5 {[%emt 0:00:24]} g6 {[%emt 0:01:02]} 39. Re7 {[%emt 0:00:04]} Rf4 {[%emt 0:00:05]} 40. Kh2 {[%emt 0:00:40]} Rf7 {[%emt 0:00:09]} 41. Rxf7 {[%emt 0:06:53]} Kxf7 {[%emt 0:00:07]} 42. g4 $1 {[%emt 0:00:01][%cal Bg2g4,Bg4g5][%mdl 32]} h4 {[%emt 0:00:08]} (42... hxg4 $5 43. Kg3 $8 Kg8 $11) 43. g5 {[%emt 0:00:03]} Ke6 {[%emt 0:00:05] ( -> ...Kf5)} 44. Kh3 {[%emt 0:00:03]} Kf5 {[%emt 0:00:05]} 45. Kxh4 {[%emt 0:00:04]} Kf4 {[%emt 0:00:06] Weighted Error Value: White=0.05 (flawless) /Black=0.03 (flawless) .  Inaccurate:     	White=1     	Black=1      OK:         	White=18    	Black=21     Best:        	White=1     	Black=2      Strong:       	White=2     	---} 1/2-1/2

[Event "CIS Master Groups 2024"]
[Site "Vasto"]
[Date "2024.04.08"]
[Round "1.10"]
[White "Seresin, Francesco"]
[Black "Loiacono, Leonardo"]
[Result "1/2-1/2"]
[ECO "A28"]
[WhiteElo "2336"]
[BlackElo "2309"]
[Annotator "RC"]
[PlyCount "69"]
[EventDate "2024.04.07"]
[EventType "team-tourn"]
[EventCountry "ITA"]
[SourceTitle "playchess.com"]
[Source "ChessBase"]
[SourceQuality "1"]
[TimeControl "40/5400+30:900+30"]

1. c4 {[%emt 0:00:57]} e5 {[%emt 0:00:43]} 2. Nc3 {[%emt 0:00:53]} Nf6 {[%emt 0:00:13]} 3. Nf3 {[%emt 0:01:31]} Nc6 {[%emt 0:00:24]} 4. e4 {[%emt 0:00:26]} Bb4 {[%emt 0:08:24]} 5. d3 {[%emt 0:02:12]} d6 {[%emt 0:02:20]} 6. Be2 {[%emt 0:00:57]} a5 {[%emt 0:18:51]} 7. O-O {[%emt 0:04:04]} Bg4 {[%emt 0:06:58]} 8. h3 {[%emt 0:15:47]} Bxf3 {[%emt 0:00:09]} 9. Bxf3 {[%emt 0:00:08]} Bc5 {[%emt 0:00:35]} 10. Kh1 {[%emt 0:04:45]} Nd4 {[%emt 0:07:30]} 11. Be2 {[%emt 0:05:30]} Nd7 {[%emt 0:01:40]} 12. Bg4 {[%emt 0:09:49]} O-O {[%emt 0:03:52]} 13. Be3 {[%emt 0:07:22]} Kh8 {[%emt 0:13:37]} 14. Ne2 {[%emt 0:07:08]} Nxe2 {[%emt 0:00:15]} 15. Qxe2 {[%emt 0:01:15]} Nb8 {[%emt 0:01:32]} 16. g3 {[%emt 0:10:25]} Nc6 {[%emt 0:01:33]} 17. Kg2 {[%emt 0:00:13]} a4 {[%emt 0:05:07]} 18. a3 {[%emt 0:02:48]} Qe8 {[%emt 0:06:07]} 19. Rab1 {[%emt 0:02:12]} Nd4 {[%emt 0:00:34]} 20. Qd2 {[%emt 0:03:07]} b5 {[%emt 0:01:15]} 21. Qc3 {[%emt 0:01:16]} Ra7 {[%emt 0:01:55]} 22. Rfc1 {[%emt 0:03:22]} Qc6 {[%emt 0:05:59]} 23. cxb5 {[%emt 0:02:04]} Qxb5 {[%emt 0:00:10]} 24. Qc4 {[%emt 0:00:43]} Qxc4 {[%emt 0:02:42]} 25. Rxc4 {[%emt 0:00:26]} Rb8 {[%emt 0:00:10]} 26. Bd1 {[%emt 0:02:39]} Bxa3 {[%emt 0:04:29]} 27. Bxd4 {[%emt 0:02:20]} exd4 {[%emt 0:00:05]} 28. Bxa4 {[%emt 0:01:14]} c5 {[%emt 0:03:12]} 29. b3 {[%emt 0:00:54]} Bb4 {[%emt 0:00:36]} 30. Rb2 {[%emt 0:01:14]} Rb6 {[%emt 0:00:43]} 31. Re2 {[%emt 0:00:46]} Kg8 {[%emt 0:00:47]} 32. Rcc2 {[%emt 0:00:09]} Kf8 {[%emt 0:00:30]} 33. h4 {[%emt 0:00:08]} Ke7 {[%emt 0:00:35]} 34. Ra2 {[%emt 0:00:19]} Bc3 {[%emt 0:00:24]} 35. Kf3 {[%emt 0:01:02]} 1/2-1/2

[Event "CIS Master Groups 2024"]
[Site "Vasto"]
[Date "2024.04.08"]
[Round "1.11"]
[White "Damia, Angelo"]
[Black "Boraso, Alessio"]
[Result "1/2-1/2"]
[ECO "C01"]
[WhiteElo "2234"]
[BlackElo "2291"]
[Annotator "RC"]
[PlyCount "130"]
[EventDate "2024.04.07"]
[EventType "team-tourn"]
[EventCountry "ITA"]
[SourceTitle "playchess.com"]
[Source "ChessBase"]
[SourceQuality "1"]
[TimeControl "40/5400+30:900+30"]

1. e4 {[%emt 0:00:12]} e6 {[%emt 0:00:30]} 2. d4 {[%emt 0:00:08]} d5 {[%emt 0:00:05]} 3. Bd3 {[%emt 0:00:57]} c5 {[%emt 0:00:38]} 4. exd5 {[%emt 0:00:06]} exd5 {[%emt 0:00:07]} 5. Nc3 {[%emt 0:00:53]} Nc6 {[%emt 0:13:55]} 6. Nf3 {[%emt 0:16:58]} c4 {[%emt 0:04:24]} 7. Be2 {[%emt 0:00:04]} Nf6 {[%emt 0:01:01]} 8. O-O {[%emt 0:02:30]} Be7 {[%emt 0:01:55]} 9. b3 {[%emt 0:05:17]} cxb3 {[%emt 0:01:33]} 10. axb3 {[%emt 0:00:10]} O-O {[%emt 0:01:46]} 11. Ne5 {[%emt 0:07:03]} Bb4 {[%emt 0:11:16]} 12. Nb5 {[%emt 0:09:53]} Ne4 {[%emt 0:08:37]} 13. Bb2 {[%emt 0:08:12]} a6 {[%emt 0:06:46]} 14. f3 {[%emt 0:05:28]} Nf6 {[%emt 0:11:24]} 15. c4 {[%emt 0:22:02]} Bf5 {[%emt 0:09:10]} 16. Na3 {[%emt 0:06:05]} Rc8 {[%emt 0:04:01]} 17. Bd3 {[%emt 0:01:41]} Bxd3 {[%emt 0:01:42]} 18. Nxc6 {[%emt 0:04:45]} Rxc6 {[%emt 0:02:02]} 19. Qxd3 {[%emt 0:00:04]} Re6 {[%emt 0:02:41]} 20. Nc2 {[%emt 0:00:49]} Bd6 {[%emt 0:00:33]} 21. Ba3 {[%emt 0:04:08]} Rfe8 {[%emt 0:01:25]} 22. Bxd6 {[%emt 0:00:12]} Qxd6 {[%emt 0:00:01]} 23. Rfe1 {[%emt 0:01:26]} Nh5 {[%emt 0:00:20]} 24. Rxe6 {[%emt 0:00:19]} Rxe6 {[%emt 0:00:18]} 25. Re1 {[%emt 0:01:39]} Rxe1+ {[%emt 0:01:52]} 26. Nxe1 {[%emt 0:00:01]} Nf4 {[%emt 0:00:20]} 27. Qe3 {[%emt 0:01:33]} dxc4 {[%emt 0:00:27]} 28. Qe8+ {[%emt 0:00:54]} Qf8 {[%emt 0:00:01]} 29. Qe4 {[%emt 0:00:16]} Ne6 {[%emt 0:13:28]} 30. bxc4 {[%emt 0:00:05]} g6 {[%emt 0:00:23]} 31. Qxb7 {[%emt 0:00:59]} Nxd4 {[%emt 0:00:11]} 32. Nd3 {[%emt 0:00:37]} Qe8 {[%emt 0:01:11]} 33. Qe4 {[%emt 0:00:22]} Qxe4 {[%emt 0:00:48]} 34. fxe4 {[%emt 0:00:01]} f6 {[%emt 0:01:09]} 35. Kf2 {[%emt 0:00:39]} Kf7 {[%emt 0:00:01]} 36. Ke3 {[%emt 0:00:21]} Nc6 {[%emt 0:00:01]} 37. Kd2 {[%emt 0:00:31]} Ne5 {[%emt 0:01:20]} 38. Nb2 {[%emt 0:00:31]} Ke6 {[%emt 0:00:32]} 39. Kc3 {[%emt 0:01:06]} Kd6 {[%emt 0:00:31]} 40. h3 {[%emt 0:00:32]} h5 {[%emt 0:01:26]} 41. Na4 {[%emt 0:07:12]} h4 {[%emt 0:03:23]} 42. Nb6 {[%emt 0:07:12]} Nc6 {[%emt 0:03:09]} 43. Kd3 {[%emt 0:01:16]} a5 {[%emt 0:01:04]} 44. Na4 {[%emt 0:00:53]} g5 {[%emt 0:04:50]} 45. c5+ {[%emt 0:00:34]} Ke5 {[%emt 0:00:27]} 46. Ke3 {[%emt 0:01:00]} Ke6 {[%emt 0:02:25]} 47. Nb6 {[%emt 0:00:26]} Nb4 {[%emt 0:00:25]} 48. Kd4 {[%emt 0:00:36]} Nc6+ {[%emt 0:02:24]} 49. Ke3 {[%emt 0:00:26]} f5 {[%emt 0:00:56]} 50. exf5+ {[%emt 0:00:32]} Kxf5 {[%emt 0:00:01]} 51. Kf3 {[%emt 0:00:25]} Ne5+ {[%emt 0:01:04]} 52. Ke3 {[%emt 0:00:13]} g4 {[%emt 0:00:34]} 53. Kd4 {[%emt 0:00:54]} Nc6+ {[%emt 0:00:19]} 54. Kd5 {[%emt 0:00:45]} Na7 {[%emt 0:00:52]} 55. Nc4 {[%emt 0:00:32]} gxh3 {[%emt 0:00:17]} 56. gxh3 {[%emt 0:00:05]} a4 {[%emt 0:00:12]} 57. Kd4 {[%emt 0:00:53]} Kf4 {[%emt 0:00:08]} 58. Kc3 {[%emt 0:00:06]} Kg3 {[%emt 0:01:08]} 59. Ne5 {[%emt 0:00:19]} Nb5+ {[%emt 0:00:52]} 60. Kb4 {[%emt 0:00:08]} a3 {[%emt 0:00:25]} 61. Kb3 {[%emt 0:00:12]} Kxh3 {[%emt 0:00:36]} 62. Nf3 {[%emt 0:00:12]} Kg3 {[%emt 0:00:28]} 63. Nxh4 {[%emt 0:00:05]} Kxh4 {[%emt 0:00:05]} 64. c6 {[%emt 0:00:03]} Nd4+ {[%emt 0:00:26]} 65. Kxa3 {[%emt 0:00:06]} Nxc6 {[%emt 0:01:39]} 1/2-1/2